{"text_format":"1","workbook":"xlsx","n_sheets":8,"sheets":["Deckblatt","Entwicklungsmaßnahmen","Kompetenzbeurteilung","Erläuterungen","Info","Schulungsplan","Bemerkungen","Gehaltsanpassung"],"not_rendered":{"charts":0,"images":0,"macros":1,"external_links":0,"defined_names":0,"comments":0,"pivot_tables":0},"unopened":[],"bounds":{"document_bytes":16777216,"sheet_cells":100000,"rows_first":2000,"rows_last":500,"rows_between":2000,"halvings":0,"cell_chars":16384,"cell_head_chars":4096},"cells_cut":0,"cells_raw":0,"read":"whole","date_system":"1900"}

{"sheet":"Deckblatt","index":0,"n_rows":33,"n_cols":8,"rows_kept":33,"cut":false,"hidden":false,"merged":[[17,0,20,9],[23,0,27,9],[1,0,1,9],[7,5,8,6],[6,7,6,9],[4,7,4,9],[8,2,8,3],[7,7,8,9],[3,1,3,2],[3,7,3,8],[4,1,4,2],[6,1,6,3]]}
[]
["Deckblatt"]
[]
["Nachname:","Muster",null,null,null,"Personalnummer:",null,4711]
["Vorname:","Max",null,null,null,"Vorgesetzter:",null,"Chef"]
[]
["Datum:",null,null,null,null,"Bereich / Abteilung:"]
[null,null,null,null,null,"Bezeichnung der Laufbahnstufe:"]
["Laufbahnstufe:"]
[]
[]
[null,"Gesamteinschätzung:"," "]
[]
[]
[]
["Stellenbeschreibung aktuell?"]
["Bemerkung wenn Stellenbeschreibung nicht aktuell"]
[]
[]
[]
[]
[]
["Bemerkung"]
["will mehr geld"]
[]
[]
[]
[]
[]
["Ich bin mit den Einschätzungen des Mitarbeiterjahresgesprächs einverstanden."]
[]
[]
["Unterschrift Mitarbeiter/-in",null,null,null,null,"Unterschrift Vorgesetzte/-r"]

{"sheet":"Entwicklungsmaßnahmen","index":1,"n_rows":23,"n_cols":10,"rows_kept":23,"cut":false,"hidden":false,"merged":[[28,0,28,1],[28,2,28,6],[28,9,28,10],[26,0,26,1],[26,2,26,6],[26,9,26,10],[27,0,27,1],[27,2,27,6],[27,9,27,10],[24,9,24,10],[25,0,25,1],[25,2,25,6],[25,9,25,10],[24,0,24,1],[24,2,24,6],[16,0,16,1],[23,0,23,1],[23,2,23,6],[23,9,23,10],[22,0,22,1],[22,2,22,6],[22,9,22,10],[15,2,15,6],[16,2,16,6],[15,7,15,8],[16,7,16,8],[16,9,16,10],[11,2,11,6],[12,2,12,6],[13,2,13,6],[14,2,14,6],[11,7,11,8],[12,7,12,8],[13,7,13,8],[14,7,14,8],[1,0,1,10],[10,0,10,1],[10,2,10,6],[10,7,10,8],[10,9,10,10],[4,2,4,3],[6,2,6,3],[4,7,4,9],[6,7,6,9],[3,2,3,3],[11,9,11,10],[12,9,12,10],[13,9,13,10],[14,9,14,10],[15,9,15,10],[11,0,11,1],[12,0,12,1],[13,0,13,1],[14,0,14,1],[15,0,15,1]]}
[]
["Entwicklungsbogen"]
[]
["Nachname:",null,{"$f":"Deckblatt!B4","v":"Muster"}]
["Vorname:",null,{"$f":"Deckblatt!B5","v":"Max"},null,null,"Vorgesetzter:",null,{"$f":"Deckblatt!H5","v":"Chef"}]
[]
["Datum:",null,{"$f":"Deckblatt!B7","v":"00:00:00"},null,null,"Bereich / Abteilung:",null,{"$f":"Deckblatt!H7","v":0}]
[]
["Entwicklungsmaßnahmen vergangenes Jahr"]
[]
["Kompetenz",null,"Entwicklungsmaßnahmen/Ziele",null,null,null,null,"durchgeführt am",null,"Wirksamkeitskontrolle \nintern/extern"]
["wissen",null,"könnte mehr sein"]
["mehr wissen",null,"könnte noch mehr sein"]
[]
[]
[]
[]
[]
["Entwicklungsziele, welche im vergangenen Jahr nicht erreicht wurden, werden auf das aktuelle Jahr übertragen."]
[]
["Entwicklungsmaßnahmen aktuelles Jahr"]
[]
["Kompetenz",null,"Entwicklungsmaßnahmen / Ziele",null,null,null,null,"on the job","off the job","Zieltermin/Priorität"]

{"sheet":"Kompetenzbeurteilung","index":2,"n_rows":26,"n_cols":3,"rows_kept":26,"cut":false,"hidden":false,"merged":[[19,2,20,2],[20,0,20,1],[22,2,23,2],[23,0,23,1],[25,2,26,2],[26,0,26,1],[10,2,11,2],[11,0,11,1],[13,2,14,2],[14,0,14,1],[16,2,17,2],[17,0,17,1]]}
[]
["Kompetenz","IST","beobachtetes Verhalten / Begründung der Einschätzung"]
[]
["fachliche Breite / Expertenwissen / fachspez. Methoden (Grundlage = Stellenbeschreibung)"]
[]
[]
[]
[]
[]
[]
["Methoden: Arbeitsorganisation"]
[]
[]
["Methoden: Problemlösung"]
[]
[]
["Sozial: Kommunikationsfähigkeit"]
[]
[]
["Sozial: Kooperations- und Teamfähigkeit"]
[]
[]
["Persönlich: Leistungsbereitschaft"]
[]
[]
["Persönlich: Kundenorientiert denken und handeln"]

{"sheet":"Erläuterungen","index":3,"n_rows":10,"n_cols":4,"rows_kept":10,"cut":false,"hidden":false,"merged":[]}
[]
[]
[]
["Bewertungsschema:"]
[]
["N","nicht relevant",null,"In dem aktuellen Aufgabengebiet wird diese Kompetenz nicht erwartet."]
["A","Anfänger","rudimentäre Kompetenz ist vorhanden","Der Mitarbeiter verfügt über erste Erfahrungen im Kompetenzfeld, für die Anwendung des Wissens benötigt er aber die Unterstützung durch fortgeschrittenere Kollegen. Er muss für die Durchführung seiner Aufgaben nur die grundlegenden Zusammenhänge kennen.\nDer Mitarbeiter zeigt kein negatives Verhalten."]
["B","Basis","Basiskompetenz ist vorhanden","Der Mitarbeiter verfügt über gute fundierte Grundlagenkenntnisse. Er kann sein Wissen und seine Erfahrung selbständig anwenden, um seine Ziele zu erreichen und bestimmte Ergebnisse im Rahmen von Routineaufgaben zu liefern.\nDas erwartete Verhalten wird gezeigt und kann weiterentwickelt werden."]
["F","Fortgeschritten","Kompetenz ist deutlich ausgeprägt","Der Mitarbeiter beherrscht das Kompetenzgebiet. Dies zeigt sich darin, das er auch anderen teilweise Hilfestellung geben kann. Er muss bei Sonderaufgaben aber möglicherweise Informationen von dritter Seite beschaffen.\nDas erwartete Verhalten ist als Stärke sichtbar und kann weiterentwickelt werden."]
["E","Experte","Kompetenz ist überdurchschnittlich ausgeprägt","Der Mitarbeiter beherrscht das Fachgebiet vollständig, er ist die fachliche Autorität auf einem Gebiet und kann alle Aspekte und Teilgebiete dieses Bereichs anwenden. Er kann andere Mitarbeiter selbständig einweisen und anleiten.\nDas erwartete Verhalten ist best practice."]

{"sheet":"Info","index":4,"n_rows":50,"n_cols":10,"rows_kept":50,"cut":false,"hidden":false,"merged":[]}
[]
[]
[]
[]
[null,"Matthias"]
[null,"2025-04-16T12:53:59",null,null,null,null,null,null,null,"Matthias"]
[null,"zellen_automatisch_auschneiden_und_einfuegen",null,null,null,null,null,null,null,"2025-04-17T11:33:07"]
[null,"Hallo zusammen,",null,null,null,null,null,null,null,"AW: zellen_automatisch_auschneiden_und_einfuegen"]
[null,"ich würde gern diesen Thread nochmal aufnehmen. Da ich nicht weis wie ich direkt darauf antworten kann auf diesem Weg.",null,null,null,null,null,null,null,"Hallo Piet,"]
[null,null,null,null,null,null,null,null,null,"danke für deine Hilfe."]
[null,"https://www.herber.de/forum/archiv/2004to2008/2004011_zellen_automatisch_auschneiden_und_einfuegen.html",null,null,null,null,null,null,null,"Leider hat es nicht ganz funktioniert."]
[null,null,null,null,null,null,null,null,null,"1. die Zellen auf dem Blatt Entwicklungsmaßnahmen sind verbundene Zellen. Hier müsste ich z.B. den Befehl für jede Spalte einfügen (A12:B12 etc.)."]
[null,"Es geht darum aus einem Mitarbeitergespräch das wir als Excel Sheet zurückbekommen bestimmte Zellen zu leeren und die Datei für das nächste Gespräch vorzubereiten.",null,null,null,null,null,null,null,"ich habe den Code von dir und mir vereint, damit funktioniert das kopieren, einfügen und löschen auf Blatt Entwicklungsmaßnahmen und ein Teil der Aufgaben auf dem Blatt Schulungsplan."]
[null,"Aktuelle habe ich eine Ausgangsdatei und eine die das Ergebnis zeigt. In beiden Dateien sind 2 Tabellenblätter ausgeblendet. Diese sollen auch bearbeitet werden. Ich habe ein Makro für die einzelnen Schritte aufgezeichnet, leider wird nicht alles so ausgeführt wie ich es mir wünsche.",null,null,null,null,null,null,null,"2. auf dem Blatt Schulungsplan(ausgeblendet) wird der Wert aus Deckblatt H5 nur in G2 eingefügt nicht in Zelle G2 - G7 (nicht so wild)"]
[null,null,null,null,null,null,null,null,null,"3. auf dem Blatt Bemerkung(ausgeblendet) wird keiner der 3 Befehle ausgeführt (Spalten hinzufügen, 1.Zeile löschen u. in G2 Deckblatt H5 einfügen)."]
[null,"Folgendes soll gemacht werden:",null,null,null,null,null,null,null,"Diese Befehle muss ich manuell in jeder Datei machen. Es kommt aber dafür auch keine Fehlermeldung..."]
[]
[null,"Deckblatt:",null,null,null,null,null,null,null,"Ich hatte jetzt auch schon versucht 2 Makros nacheinander auszuführen, leider auch ohne Erfolg."]
[null,"B7 löschen"]
[null,"F16 und H16 leeren (sofern ein Haken gesetzt ist) hat keine Priorität!"]
[]
[null,"Entwicklungsmaßnahmen:"]
[null,"A12 - A17 Inhalte löschen (gleiches für die Zellen C,H,J 12 -17)"]
[null,"A24 - A29 und C24 - C29 kopieren und in A12 - A17 und C24 - C29 einfügen"]
[null,"dann A24 - A29 Inhalte löschen (gleiches für die Zellen C,H,I,J 24 - 29)"]
[]
[null,"Schulungsplan (ausgeblendet):"]
[null,"- einblenden"]
[null,"- nach Spalte C 4 Spalten einfügen"]
[null,"- in Zelle G2 - G7 Wert aus Deckblatt H5 einfügen"]
[null,"- die erste Zeile komplett löschen"]
[]
[null,"Gehaltsanpassung (ausgeblendet):"]
[null,"- einblenden"]
[null,"- nach Spalte C 4 Spalten einfügen"]
[null,"- in Zelle G2 Wert aus Deckblatt H5 einfügen"]
[null,"- die erste Zeile komplett löschen"]
[]
[null,"Danach die beiden Blätter wieder ausblenden und speichern. Hier wäre es super wenn die Datei unter neuem Namen gespeichert werden könnte. Kein muss."]
[null,"Als Anhang 1x die Ausgangsdatei und 1x das gewünschte Ergebnis."]
[]
[null,"https://www.herber.de/bbs/user/176755.xlsx"]
[null,"https://www.herber.de/bbs/user/176756.xlsx"]
[]
[null,"Und hier der der Inhalt des aufgezeichneten Makros: Ganz unten steht Danke! :-)"]
[]
[null,"Sub MAG_komplett()"]
[null,"'"]
[null,"' MAG_komplett Makro"]
[null,"'"]

{"sheet":"Schulungsplan","index":5,"n_rows":6,"n_cols":15,"rows_kept":6,"cut":false,"hidden":true,"merged":[]}
[{"$f":"Deckblatt!H$4","v":4711},{"$f":"Deckblatt!B$4","v":"Muster"},{"$f":"Deckblatt!B$5","v":"Max"},null,null,null,{"$f":"Deckblatt!H$5","v":"Chef"},{"$f":"Entwicklungsmaßnahmen!A24","v":0},{"$f":"Entwicklungsmaßnahmen!C24","v":0},{"$f":"Entwicklungsmaßnahmen!H24","v":0},{"$f":"Entwicklungsmaßnahmen!I24","v":0},{"$f":"Entwicklungsmaßnahmen!J24","v":"00:00:00"},null,true,false]
[{"$f":"Deckblatt!H$4","v":4711},{"$f":"Deckblatt!B$4","v":"Muster"},{"$f":"Deckblatt!B$5","v":"Max"},null,null,null,null,{"$f":"Entwicklungsmaßnahmen!A25","v":0},{"$f":"Entwicklungsmaßnahmen!C25","v":0},{"$f":"Entwicklungsmaßnahmen!H25","v":0},{"$f":"Entwicklungsmaßnahmen!I25","v":0},{"$f":"Entwicklungsmaßnahmen!J25","v":"00:00:00"}]
[{"$f":"Deckblatt!H$4","v":4711},{"$f":"Deckblatt!B$4","v":"Muster"},{"$f":"Deckblatt!B$5","v":"Max"},null,null,null,null,{"$f":"Entwicklungsmaßnahmen!A26","v":0},{"$f":"Entwicklungsmaßnahmen!C26","v":0},{"$f":"Entwicklungsmaßnahmen!H26","v":0},{"$f":"Entwicklungsmaßnahmen!I26","v":0},{"$f":"Entwicklungsmaßnahmen!J26","v":"00:00:00"}]
[{"$f":"Deckblatt!H$4","v":4711},{"$f":"Deckblatt!B$4","v":"Muster"},{"$f":"Deckblatt!B$5","v":"Max"},null,null,null,null,{"$f":"Entwicklungsmaßnahmen!A27","v":0},{"$f":"Entwicklungsmaßnahmen!C27","v":0},{"$f":"Entwicklungsmaßnahmen!H27","v":0},{"$f":"Entwicklungsmaßnahmen!I27","v":0},{"$f":"Entwicklungsmaßnahmen!J27","v":"00:00:00"}]
[{"$f":"Deckblatt!H$4","v":4711},{"$f":"Deckblatt!B$4","v":"Muster"},{"$f":"Deckblatt!B$5","v":"Max"},null,null,null,null,{"$f":"Entwicklungsmaßnahmen!A28","v":0},{"$f":"Entwicklungsmaßnahmen!C28","v":0},{"$f":"Entwicklungsmaßnahmen!H28","v":0},{"$f":"Entwicklungsmaßnahmen!I28","v":0},{"$f":"Entwicklungsmaßnahmen!J28","v":"00:00:00"}]
[{"$f":"Deckblatt!H$4","v":4711},{"$f":"Deckblatt!B$4","v":"Muster"},{"$f":"Deckblatt!B$5","v":"Max"},null,null,null,null,{"$f":"Entwicklungsmaßnahmen!A29","v":0},{"$f":"Entwicklungsmaßnahmen!C29","v":0},{"$f":"Entwicklungsmaßnahmen!H29","v":0},{"$f":"Entwicklungsmaßnahmen!I29","v":0},{"$f":"Entwicklungsmaßnahmen!J29","v":"00:00:00"}]

{"sheet":"Bemerkungen","index":6,"n_rows":6,"n_cols":15,"rows_kept":6,"cut":false,"hidden":true,"merged":[]}
[{"$f":"Deckblatt!H$4","v":4711},{"$f":"Deckblatt!B$4","v":"Muster"},{"$f":"Deckblatt!B$5","v":"Max"},null,null,null,{"$f":"Deckblatt!H$5","v":"Chef"},{"$f":"Entwicklungsmaßnahmen!A24","v":0},{"$f":"Entwicklungsmaßnahmen!C24","v":0},{"$f":"Entwicklungsmaßnahmen!H24","v":0},{"$f":"Entwicklungsmaßnahmen!I24","v":0},{"$f":"Entwicklungsmaßnahmen!J24","v":"00:00:00"},null,true,false]
[{"$f":"Deckblatt!H$4","v":4711},{"$f":"Deckblatt!B$4","v":"Muster"},{"$f":"Deckblatt!B$5","v":"Max"},null,null,null,null,{"$f":"Entwicklungsmaßnahmen!A25","v":0},{"$f":"Entwicklungsmaßnahmen!C25","v":0},{"$f":"Entwicklungsmaßnahmen!H25","v":0},{"$f":"Entwicklungsmaßnahmen!I25","v":0},{"$f":"Entwicklungsmaßnahmen!J25","v":"00:00:00"}]
[{"$f":"Deckblatt!H$4","v":4711},{"$f":"Deckblatt!B$4","v":"Muster"},{"$f":"Deckblatt!B$5","v":"Max"},null,null,null,null,{"$f":"Entwicklungsmaßnahmen!A26","v":0},{"$f":"Entwicklungsmaßnahmen!C26","v":0},{"$f":"Entwicklungsmaßnahmen!H26","v":0},{"$f":"Entwicklungsmaßnahmen!I26","v":0},{"$f":"Entwicklungsmaßnahmen!J26","v":"00:00:00"}]
[{"$f":"Deckblatt!H$4","v":4711},{"$f":"Deckblatt!B$4","v":"Muster"},{"$f":"Deckblatt!B$5","v":"Max"},null,null,null,null,{"$f":"Entwicklungsmaßnahmen!A27","v":0},{"$f":"Entwicklungsmaßnahmen!C27","v":0},{"$f":"Entwicklungsmaßnahmen!H27","v":0},{"$f":"Entwicklungsmaßnahmen!I27","v":0},{"$f":"Entwicklungsmaßnahmen!J27","v":"00:00:00"}]
[{"$f":"Deckblatt!H$4","v":4711},{"$f":"Deckblatt!B$4","v":"Muster"},{"$f":"Deckblatt!B$5","v":"Max"},null,null,null,null,{"$f":"Entwicklungsmaßnahmen!A28","v":0},{"$f":"Entwicklungsmaßnahmen!C28","v":0},{"$f":"Entwicklungsmaßnahmen!H28","v":0},{"$f":"Entwicklungsmaßnahmen!I28","v":0},{"$f":"Entwicklungsmaßnahmen!J28","v":"00:00:00"}]
[{"$f":"Deckblatt!H$4","v":4711},{"$f":"Deckblatt!B$4","v":"Muster"},{"$f":"Deckblatt!B$5","v":"Max"},null,null,null,null,{"$f":"Entwicklungsmaßnahmen!A29","v":0},{"$f":"Entwicklungsmaßnahmen!C29","v":0},{"$f":"Entwicklungsmaßnahmen!H29","v":0},{"$f":"Entwicklungsmaßnahmen!I29","v":0},{"$f":"Entwicklungsmaßnahmen!J29","v":"00:00:00"}]

{"sheet":"Gehaltsanpassung","index":7,"n_rows":2,"n_cols":4,"rows_kept":2,"cut":false,"hidden":true,"merged":[]}
["PNr","Nachname","Vorname","Gehaltsanpassung"]
[{"$f":"Deckblatt!H$4","v":4711},{"$f":"Deckblatt!B$4","v":"Muster"},{"$f":"Deckblatt!B$5","v":"Max"},{"$f":"Deckblatt!A24","v":"will mehr geld"}]